[Event "*** Titled Tuesday Blitz"]
[Site "Chess.com"]
[Date "2020.11.10"]
[Round "9"]
[White "PattyCastillo"]
[Black "queen_iryna"]
[Result "0-1"]
[WhiteElo "1981"]
[BlackElo "2272"]
[TimeControl "180+1"]
[EndTime "11:51:57 PST"]
[Termination "queen_iryna won on time"]

1. d4 {[%clk 0:03:00.9]} 1... d6 {[%clk 0:02:55.9]} 2. Nc3 {[%clk 0:02:59.6]}
2... Nf6 {[%clk 0:02:52.5]} 3. e4 {[%clk 0:02:59]} 3... e5 {[%clk 0:02:52.1]} 4.
dxe5 {[%clk 0:02:56.2]} 4... dxe5 {[%clk 0:02:51.9]} 5. Qxd8+ {[%clk 0:02:56.1]}
5... Kxd8 {[%clk 0:02:52.8]} 6. Bg5 {[%clk 0:02:49.9]} 6... Be6 {[%clk 0:02:52]}
7. O-O-O+ {[%clk 0:02:48.7]} 7... Nd7 {[%clk 0:02:52.1]} 8. Nf3 {[%clk
0:02:43.9]} 8... Kc8 {[%clk 0:02:50.6]} 9. Bxf6 {[%clk 0:02:39.5]} 9... gxf6
{[%clk 0:02:49.9]} 10. Bb5 {[%clk 0:02:36.7]} 10... c6 {[%clk 0:02:46.7]} 11.
Ba4 {[%clk 0:02:36.1]} 11... Bb4 {[%clk 0:02:44.8]} 12. Bb3 {[%clk 0:02:29.9]}
12... Kc7 {[%clk 0:02:37]} 13. Nh4 {[%clk 0:02:19.5]} 13... Rhg8 {[%clk
0:02:26.2]} 14. g3 {[%clk 0:02:06.9]} 14... Nc5 {[%clk 0:02:25.4]} 15. f3 {[%clk
0:02:00.3]} 15... Bxc3 {[%clk 0:02:16.4]} 16. bxc3 {[%clk 0:01:59.6]} 16... a5
{[%clk 0:02:13]} 17. Rhe1 {[%clk 0:01:41.3]} 17... b5 {[%clk 0:01:59.9]} 18. Ng2
{[%clk 0:01:31.3]} 18... Rgd8 {[%clk 0:01:49.6]} 19. Ne3 {[%clk 0:01:29.9]}
19... Rxd1+ {[%clk 0:01:47.1]} 20. Rxd1 {[%clk 0:01:29.2]} 20... h5 {[%clk
0:01:44.3]} 21. Nf5 {[%clk 0:01:21.8]} 21... Bxf5 {[%clk 0:01:42.7]} 22. exf5
{[%clk 0:01:21.6]} 22... Rf8 {[%clk 0:01:42.5]} 23. a3 {[%clk 0:01:07.8]} 23...
a4 {[%clk 0:01:36.6]} 24. Ba2 {[%clk 0:01:07.3]} 24... Nb7 {[%clk 0:01:36.8]}
25. g4 {[%clk 0:00:58.7]} 25... Nd6 {[%clk 0:01:32.4]} 26. h3 {[%clk 0:00:54.4]}
26... hxg4 {[%clk 0:01:31.8]} 27. hxg4 {[%clk 0:00:52.7]} 27... Rh8 {[%clk
0:01:31.2]} 28. Kb2 {[%clk 0:00:48.3]} 28... Rh3 {[%clk 0:01:25.6]} 29. Rd3
{[%clk 0:00:47.3]} 29... Rh2 {[%clk 0:01:23.9]} 30. Re3 {[%clk 0:00:40.3]} 30...
Rg2 {[%clk 0:01:21.6]} 31. Rd3 {[%clk 0:00:19.3]} 31... e4 {[%clk 0:01:17.9]}
32. fxe4 {[%clk 0:00:18.9]} 32... Rxg4 {[%clk 0:01:18]} 33. Rd4 {[%clk
0:00:13.7]} 33... Rxe4 {[%clk 0:01:17.4]} 34. Rxe4 {[%clk 0:00:13.3]} 34... Nxe4
{[%clk 0:01:18.3]} 35. Bxf7 {[%clk 0:00:13.4]} 35... Kd6 {[%clk 0:01:18.5]} 36.
c4 {[%clk 0:00:11.9]} 36... Ng3 {[%clk 0:01:14.6]} 37. cxb5 {[%clk 0:00:11.2]}
37... cxb5 {[%clk 0:01:13.9]} 38. Be8 {[%clk 0:00:10.1]} 38... Kc5 {[%clk
0:01:11.1]} 39. Bd7 {[%clk 0:00:09.8]} 39... Ne4 {[%clk 0:01:10]} 40. Kc1 {[%clk
0:00:05.8]} 40... Kc4 {[%clk 0:01:07.3]} 41. Kb2 {[%clk 0:00:05.2]} 41... Nc5
{[%clk 0:01:03.3]} 42. Bc8 {[%clk 0:00:04.8]} 42... Kd5 {[%clk 0:01:01]} 43. Kc3
{[%clk 0:00:03.7]} 43... Kc6 {[%clk 0:00:52.2]} 44. Kb4 {[%clk 0:00:03.9]} 44...
Ne4 {[%clk 0:00:43.5]} 45. Be6 {[%clk 0:00:03.2]} 45... Nd6 {[%clk 0:00:43.3]}
0-1

[Event "*** Titled Tuesday Blitz"]
[Site "Chess.com"]
[Date "2020.11.10"]
[Round "9"]
[White "yobdc"]
[Black "sokidze"]
[Result "1-0"]
[WhiteElo "2453"]
[BlackElo "2551"]
[TimeControl "180+1"]
[EndTime "11:51:58 PST"]
[Termination "yobdc won by checkmate"]

1. d4 {[%clk 0:03:00.9]} 1... Nf6 {[%clk 0:03:00]} 2. Nf3 {[%clk 0:03:00.9]}
2... e6 {[%clk 0:03:00.2]} 3. e3 {[%clk 0:03:00.7]} 3... b6 {[%clk 0:02:54.2]}
4. Bd3 {[%clk 0:03:00.6]} 4... Bb7 {[%clk 0:02:54.4]} 5. b3 {[%clk 0:03:01]}
5... c5 {[%clk 0:02:40.6]} 6. Bb2 {[%clk 0:03:00.9]} 6... d6 {[%clk 0:02:25.5]}
7. Nbd2 {[%clk 0:03:00.6]} 7... Be7 {[%clk 0:02:25.6]} 8. O-O {[%clk 0:02:58]}
8... O-O {[%clk 0:02:25.4]} 9. c4 {[%clk 0:02:56.7]} 9... Nbd7 {[%clk
0:02:23.2]} 10. Qe2 {[%clk 0:02:54]} 10... a6 {[%clk 0:02:21.8]} 11. Rfd1 {[%clk
0:02:48.7]} 11... Qc7 {[%clk 0:02:14.2]} 12. Rac1 {[%clk 0:02:48.2]} 12... Rac8
{[%clk 0:02:14]} 13. Bb1 {[%clk 0:02:45.5]} 13... Qb8 {[%clk 0:02:12.7]} 14. e4
{[%clk 0:02:43.9]} 14... cxd4 {[%clk 0:02:06.1]} 15. Nxd4 {[%clk 0:02:44.8]}
15... Nc5 {[%clk 0:01:59.7]} 16. f3 {[%clk 0:02:25.2]} 16... Bd8 {[%clk
0:01:50.4]} 17. Nf1 {[%clk 0:02:23.6]} 17... Bc7 {[%clk 0:01:44.3]} 18. Qf2
{[%clk 0:02:17.2]} 18... Bd8 {[%clk 0:01:24.2]} 19. Qg3 {[%clk 0:02:11]} 19...
Ba8 {[%clk 0:01:13.3]} 20. Ne3 {[%clk 0:02:01.9]} 20... Ncd7 {[%clk 0:01:03]}
21. Ne2 {[%clk 0:01:42.1]} 21... b5 {[%clk 0:00:54.3]} 22. Kh1 {[%clk 0:01:05]}
22... Be7 {[%clk 0:00:37.6]} 23. Qh3 {[%clk 0:00:55.9]} 23... bxc4 {[%clk
0:00:31.2]} 24. Nxc4 {[%clk 0:00:56.8]} 24... d5 {[%clk 0:00:31.5]} 25. exd5
{[%clk 0:00:55.7]} 25... Bxd5 {[%clk 0:00:30.1]} 26. Ne3 {[%clk 0:00:35.4]}
26... Rxc1 {[%clk 0:00:30]} 27. Rxc1 {[%clk 0:00:34.6]} 27... h6 {[%clk
0:00:29.3]} 28. Nxd5 {[%clk 0:00:32.4]} 28... Nxd5 {[%clk 0:00:30.2]} 29. Nd4
{[%clk 0:00:27.2]} 29... Nf4 {[%clk 0:00:24.2]} 30. Qg3 {[%clk 0:00:22.7]} 30...
Bf6 {[%clk 0:00:23.7]} 31. Rd1 {[%clk 0:00:19.1]} 31... Nd5 {[%clk 0:00:13.9]}
32. Qg4 {[%clk 0:00:12.9]} 32... Ne5 {[%clk 0:00:13.4]} 33. Qe4 {[%clk
0:00:12.9]} 33... Qc7 {[%clk 0:00:09]} 34. Nb5 {[%clk 0:00:10.4]} 34... axb5
{[%clk 0:00:08.5]} 35. Qh7# {[%clk 0:00:10.5]} 1-0

[Event "*** Titled Tuesday Blitz"]
[Site "Chess.com"]
[Date "2020.11.10"]
[Round "9"]
[White "tlomigtlis"]
[Black "Das_Virus_2020"]
[Result "0-1"]
[WhiteElo "2575"]
[BlackElo "2430"]
[TimeControl "180+1"]
[EndTime "11:51:58 PST"]
[Termination "Das_Virus_2020 won by checkmate"]

1. d4 {[%clk 0:03:00.9]} 1... Nf6 {[%clk 0:02:57.3]} 2. c4 {[%clk 0:03:01]} 2...
c5 {[%clk 0:02:55.5]} 3. d5 {[%clk 0:03:00.9]} 3... b5 {[%clk 0:02:55.7]} 4.
cxb5 {[%clk 0:03:01.8]} 4... a6 {[%clk 0:02:56.2]} 5. bxa6 {[%clk 0:03:02.7]}
5... g6 {[%clk 0:02:56.4]} 6. Nc3 {[%clk 0:03:02.7]} 6... Bxa6 {[%clk
0:02:56.9]} 7. e4 {[%clk 0:03:01.4]} 7... Bxf1 {[%clk 0:02:57.4]} 8. Kxf1 {[%clk
0:03:02.3]} 8... d6 {[%clk 0:02:57.4]} 9. Nf3 {[%clk 0:03:01.1]} 9... Nbd7
{[%clk 0:02:57.5]} 10. g3 {[%clk 0:03:01.5]} 10... Bg7 {[%clk 0:02:57.2]} 11.
Kg2 {[%clk 0:03:02.4]} 11... O-O {[%clk 0:02:57.6]} 12. a4 {[%clk 0:03:02.8]}
12... Qb6 {[%clk 0:02:57.5]} 13. Qe2 {[%clk 0:03:02.2]} 13... Rfb8 {[%clk
0:02:50.6]} 14. Bd2 {[%clk 0:03:02.1]} 14... Qa6 {[%clk 0:02:09.1]} 15. Nb5
{[%clk 0:03:01.8]} 15... Ne8 {[%clk 0:02:07.7]} 16. Bc3 {[%clk 0:02:54.7]} 16...
Qb7 {[%clk 0:01:55.3]} 17. Bxg7 {[%clk 0:02:51.9]} 17... Kxg7 {[%clk 0:01:56.2]}
18. Rhd1 {[%clk 0:02:50]} 18... Nc7 {[%clk 0:01:55.4]} 19. Nxc7 {[%clk 0:02:37]}
19... Qxc7 {[%clk 0:01:56.3]} 20. Ra3 {[%clk 0:02:33.4]} 20... Rb4 {[%clk
0:01:54]} 21. Rda1 {[%clk 0:02:21.4]} 21... Nb6 {[%clk 0:01:38.4]} 22. b3 {[%clk
0:02:11.6]} 22... Ra5 {[%clk 0:01:31.2]} 23. Nd2 {[%clk 0:01:56.9]} 23... Qb7
{[%clk 0:01:15.1]} 24. f3 {[%clk 0:01:51.5]} 24... f6 {[%clk 0:01:02.7]} 25. h4
{[%clk 0:01:43.1]} 25... c4 {[%clk 0:00:59.3]} 26. bxc4 {[%clk 0:01:38.9]} 26...
Rbxa4 {[%clk 0:00:56.3]} 27. Rxa4 {[%clk 0:01:38.3]} 27... Rxa4 {[%clk
0:00:57.2]} 28. Rb1 {[%clk 0:01:35.6]} 28... Qa6 {[%clk 0:00:54.5]} 29. Rc1
{[%clk 0:01:17.3]} 29... Ra2 {[%clk 0:00:52.7]} 30. Kf1 {[%clk 0:01:08]} 30...
Qa3 {[%clk 0:00:30.5]} 31. Rd1 {[%clk 0:00:56.3]} 31... Qc3 {[%clk 0:00:27.6]}
32. Ke1 {[%clk 0:00:47.7]} 32... Qc2 {[%clk 0:00:21]} 33. f4 {[%clk 0:00:43.3]}
33... Na4 {[%clk 0:00:19.4]} 34. e5 {[%clk 0:00:33.5]} 34... Nc3 {[%clk
0:00:17.2]} 35. exf6+ {[%clk 0:00:32.9]} 35... exf6 {[%clk 0:00:17.3]} 36. Qe7+
{[%clk 0:00:32.7]} 36... Kh6 {[%clk 0:00:17.4]} 37. Qf8+ {[%clk 0:00:18.7]}
37... Kh5 {[%clk 0:00:17.2]} 38. g4+ {[%clk 0:00:14.6]} 38... Kxg4 {[%clk
0:00:17.3]} 39. Qc8+ {[%clk 0:00:14.4]} 39... f5 {[%clk 0:00:17.2]} 40. Qd8
{[%clk 0:00:14.8]} 40... Qxd1+ {[%clk 0:00:16.3]} 41. Kf2 {[%clk 0:00:15.7]}
41... Rxd2+ {[%clk 0:00:16.3]} 42. Ke3 {[%clk 0:00:15.8]} 42... Qe2# {[%clk
0:00:16.5]} 0-1

[Event "*** Titled Tuesday Blitz"]
[Site "Chess.com"]
[Date "2020.11.10"]
[Round "9"]
[White "Aygehovit1992"]
[Black "PSvidler"]
[Result "1/2-1/2"]
[WhiteElo "2681"]
[BlackElo "2862"]
[TimeControl "180+1"]
[EndTime "11:52:00 PST"]
[Termination "Game drawn - insufficient material"]

1. e4 {[%clk 0:02:54]} 1... c5 {[%clk 0:02:58.4]} 2. Nf3 {[%clk 0:02:51.8]} 2...
e6 {[%clk 0:02:58.7]} 3. d4 {[%clk 0:02:50.7]} 3... cxd4 {[%clk 0:02:59.6]} 4.
Nxd4 {[%clk 0:02:51.5]} 4... a6 {[%clk 0:02:59.9]} 5. Nc3 {[%clk 0:02:51.8]}
5... Qc7 {[%clk 0:02:59]} 6. Be2 {[%clk 0:02:51.9]} 6... Nf6 {[%clk 0:02:57.2]}
7. O-O {[%clk 0:02:51.4]} 7... Bb4 {[%clk 0:02:57]} 8. Qd3 {[%clk 0:02:45.3]}
8... d6 {[%clk 0:02:56.9]} 9. Bg5 {[%clk 0:02:36.6]} 9... Nbd7 {[%clk
0:02:56.2]} 10. Nb3 {[%clk 0:02:10.7]} 10... O-O {[%clk 0:02:34.5]} 11. Rad1
{[%clk 0:02:09.3]} 11... h6 {[%clk 0:02:25.9]} 12. Bh4 {[%clk 0:02:06.8]} 12...
b5 {[%clk 0:02:21.7]} 13. a3 {[%clk 0:02:00.5]} 13... Bxc3 {[%clk 0:02:21.4]}
14. bxc3 {[%clk 0:01:58.9]} 14... d5 {[%clk 0:02:21.7]} 15. Bg3 {[%clk
0:01:44.5]} 15... Qc6 {[%clk 0:02:16.4]} 16. Nd4 {[%clk 0:01:38.3]} 16... Qc5
{[%clk 0:02:11.3]} 17. exd5 {[%clk 0:01:38.6]} 17... Nxd5 {[%clk 0:02:11.1]} 18.
Bf3 {[%clk 0:01:30.2]} 18... N7f6 {[%clk 0:02:07.9]} 19. Be5 {[%clk 0:01:20.6]}
19... Ra7 {[%clk 0:02:07.9]} 20. Bxd5 {[%clk 0:01:07.2]} 20... Nxd5 {[%clk
0:02:07.3]} 21. Qg3 {[%clk 0:01:07.2]} 21... f6 {[%clk 0:02:02.5]} 22. Bd6
{[%clk 0:01:07.1]} 22... Qxc3 {[%clk 0:02:02.7]} 23. Bxf8 {[%clk 0:01:07]} 23...
Qxg3 {[%clk 0:02:01.6]} 24. hxg3 {[%clk 0:01:02.9]} 24... Kxf8 {[%clk
0:02:02.5]} 25. Rfe1 {[%clk 0:01:01]} 25... Kf7 {[%clk 0:01:57.9]} 26. Nc6
{[%clk 0:00:47.4]} 26... Rd7 {[%clk 0:01:57.7]} 27. Nb4 {[%clk 0:00:43.9]} 27...
Bb7 {[%clk 0:01:56]} 28. a4 {[%clk 0:00:27.6]} 28... Rc7 {[%clk 0:01:49.2]} 29.
Nxd5 {[%clk 0:00:27.8]} 29... Bxd5 {[%clk 0:01:49.1]} 30. axb5 {[%clk
0:00:28.6]} 30... axb5 {[%clk 0:01:49.1]} 31. Rb1 {[%clk 0:00:24.9]} 31... Bc4
{[%clk 0:01:44.2]} 32. Red1 {[%clk 0:00:25.1]} 32... g5 {[%clk 0:01:43.2]} 33.
Rd6 {[%clk 0:00:22.9]} 33... Kg6 {[%clk 0:01:42.6]} 34. g4 {[%clk 0:00:22.8]}
34... h5 {[%clk 0:01:42]} 35. gxh5+ {[%clk 0:00:20.4]} 35... Kxh5 {[%clk
0:01:42.9]} 36. f3 {[%clk 0:00:18.8]} 36... Kg6 {[%clk 0:01:43]} 37. Kf2 {[%clk
0:00:18.3]} 37... Kf5 {[%clk 0:01:43.3]} 38. Kg3 {[%clk 0:00:18.3]} 38... Ke5
{[%clk 0:01:40.7]} 39. Rb6 {[%clk 0:00:18.4]} 39... f5 {[%clk 0:01:40.3]} 40.
Re1+ {[%clk 0:00:14]} 40... Kd4 {[%clk 0:01:40.6]} 41. Kf2 {[%clk 0:00:10]}
41... Kc3 {[%clk 0:01:40.5]} 42. Rexe6 {[%clk 0:00:03.1]} 42... Bxe6 {[%clk
0:01:40]} 43. Rxe6 {[%clk 0:00:04]} 43... Kxc2 {[%clk 0:01:38.8]} 44. Re5 {[%clk
0:00:04.4]} 44... b4 {[%clk 0:01:38.6]} 45. Rxf5 {[%clk 0:00:04.9]} 45... b3
{[%clk 0:01:38.1]} 46. Rxg5 {[%clk 0:00:05.4]} 46... b2 {[%clk 0:01:38.3]} 47.
Rb5 {[%clk 0:00:05.1]} 47... b1=Q {[%clk 0:01:38.4]} 48. Rxb1 {[%clk 0:00:05.4]}
48... Kxb1 {[%clk 0:01:38.9]} 49. Ke3 {[%clk 0:00:06.3]} 49... Kc2 {[%clk
0:01:37.5]} 50. Kd4 {[%clk 0:00:06.5]} 50... Rd7+ {[%clk 0:01:35.3]} 51. Ke5
{[%clk 0:00:06.4]} 51... Kd3 {[%clk 0:01:34.7]} 52. g4 {[%clk 0:00:06.8]} 52...
Ke3 {[%clk 0:01:28.4]} 53. g5 {[%clk 0:00:06.9]} 53... Kxf3 {[%clk 0:01:27.6]}
54. g6 {[%clk 0:00:06.9]} 54... Ra7 {[%clk 0:01:13.6]} 55. Kf6 {[%clk
0:00:06.7]} 55... Ra6+ {[%clk 0:01:14]} 56. Kf7 {[%clk 0:00:06.5]} 56... Ra7+
{[%clk 0:01:12.8]} 57. Kf8 {[%clk 0:00:06]} 57... Ra8+ {[%clk 0:01:12.9]} 58.
Kf7 {[%clk 0:00:06.2]} 58... Kf4 {[%clk 0:01:13.4]} 59. g7 {[%clk 0:00:06.5]}
59... Kf5 {[%clk 0:01:13.9]} 60. g8=Q {[%clk 0:00:06.5]} 60... Rxg8 {[%clk
0:01:14.6]} 61. Kxg8 {[%clk 0:00:07]} 1/2-1/2

[Event "*** Titled Tuesday Blitz"]
[Site "Chess.com"]
[Date "2020.11.10"]
[Round "9"]
[White "chenxiaoyuer"]
[Black "VladimirPotkin"]
[Result "1-0"]
[WhiteElo "2547"]
[BlackElo "2657"]
[TimeControl "180+1"]
[EndTime "11:52:01 PST"]
[Termination "chenxiaoyuer won by resignation"]

1. e4 {[%clk 0:02:56.4]} 1... e5 {[%clk 0:02:56.1]} 2. Nf3 {[%clk 0:02:55.7]}
2... Nc6 {[%clk 0:02:56.7]} 3. Bb5 {[%clk 0:02:54.8]} 3... g6 {[%clk 0:02:56.3]}
4. d4 {[%clk 0:02:53.1]} 4... exd4 {[%clk 0:02:55.3]} 5. Bg5 {[%clk 0:02:52.8]}
5... Be7 {[%clk 0:02:55.2]} 6. Bxe7 {[%clk 0:02:52.6]} 6... Qxe7 {[%clk
0:02:56.1]} 7. Bxc6 {[%clk 0:02:51.9]} 7... dxc6 {[%clk 0:02:54.5]} 8. Qxd4
{[%clk 0:02:52]} 8... Nf6 {[%clk 0:02:54.2]} 9. Nc3 {[%clk 0:02:50.6]} 9... Bg4
{[%clk 0:02:47.9]} 10. Nd2 {[%clk 0:02:49.9]} 10... c5 {[%clk 0:02:42.2]} 11.
Qe3 {[%clk 0:02:48.2]} 11... O-O-O {[%clk 0:02:41.5]} 12. h3 {[%clk 0:02:46.9]}
12... Be6 {[%clk 0:02:40]} 13. O-O-O {[%clk 0:02:45.8]} 13... Nd7 {[%clk
0:02:24.6]} 14. f4 {[%clk 0:02:40.2]} 14... Nb8 {[%clk 0:02:19.4]} 15. e5 {[%clk
0:02:26.5]} 15... Nc6 {[%clk 0:02:13.7]} 16. Nde4 {[%clk 0:02:24.6]} 16... Nd4
{[%clk 0:02:11.6]} 17. Nf6 {[%clk 0:02:16.7]} 17... Bf5 {[%clk 0:01:44.3]} 18.
Nce4 {[%clk 0:02:11]} 18... Qe6 {[%clk 0:01:37.8]} 19. b3 {[%clk 0:01:47.1]}
19... Qa6 {[%clk 0:01:27.4]} 20. a4 {[%clk 0:01:28.5]} 20... Qa5 {[%clk
0:01:19.1]} 21. g4 {[%clk 0:01:15.6]} 21... Bxe4 {[%clk 0:01:13.1]} 22. Nxe4
{[%clk 0:01:13]} 22... Qb4 {[%clk 0:01:07]} 23. Kb2 {[%clk 0:01:08.5]} 23... Ne6
{[%clk 0:00:53.1]} 24. f5 {[%clk 0:00:47.5]} 24... gxf5 {[%clk 0:00:52.6]} 25.
gxf5 {[%clk 0:00:48.4]} 25... Nd4 {[%clk 0:00:53.1]} 26. Rhf1 {[%clk 0:00:37.4]}
26... Rhe8 {[%clk 0:00:49.2]} 27. Nf6 {[%clk 0:00:29.6]} 27... Re7 {[%clk
0:00:37.8]} 28. Qe4 {[%clk 0:00:23.1]} 28... c4 {[%clk 0:00:33.9]} 29. Nd5
{[%clk 0:00:16.5]} 29... Rxd5 {[%clk 0:00:30.7]} 30. Qxd5 {[%clk 0:00:15.5]}
30... c3+ {[%clk 0:00:31.2]} 31. Ka2 {[%clk 0:00:14.5]} 31... Rd7 {[%clk
0:00:19]} 32. Qe4 {[%clk 0:00:11.8]} 32... a5 {[%clk 0:00:16.7]} 33. e6 {[%clk
0:00:10.4]} 33... fxe6 {[%clk 0:00:10]} 34. fxe6 {[%clk 0:00:10]} 34... Rd8
{[%clk 0:00:10.4]} 35. e7 {[%clk 0:00:09.6]} 35... Re8 {[%clk 0:00:10.6]} 36.
Rxd4 {[%clk 0:00:09.2]} 36... Qxe7 {[%clk 0:00:09.3]} 37. Qxe7 {[%clk
0:00:09.1]} 37... Rxe7 {[%clk 0:00:10.2]} 38. Rf8+ {[%clk 0:00:09.5]} 1-0

[Event "*** Titled Tuesday Blitz"]
[Site "Chess.com"]
[Date "2020.11.10"]
[Round "9"]
[White "MaxLeto"]
[Black "emiliochess"]
[Result "0-1"]
[WhiteElo "2403"]
[BlackElo "2302"]
[TimeControl "180+1"]
[EndTime "11:52:02 PST"]
[Termination "emiliochess won on time"]

1. g4 {[%clk 0:02:59]} 1... d5 {[%clk 0:02:59.8]} 2. Bg2 {[%clk 0:02:59.1]} 2...
Bxg4 {[%clk 0:02:53.7]} 3. c4 {[%clk 0:02:57.8]} 3... c6 {[%clk 0:02:34.8]} 4.
Qb3 {[%clk 0:02:55.3]} 4... Qb6 {[%clk 0:02:27.7]} 5. Qxb6 {[%clk 0:02:36.5]}
5... axb6 {[%clk 0:02:28.6]} 6. cxd5 {[%clk 0:02:36.9]} 6... Nf6 {[%clk
0:02:27]} 7. Nc3 {[%clk 0:02:36.4]} 7... g6 {[%clk 0:02:23.8]} 8. d3 {[%clk
0:02:30.7]} 8... Bg7 {[%clk 0:02:23.6]} 9. Be3 {[%clk 0:02:13.9]} 9... Nxd5
{[%clk 0:02:14.9]} 10. Nxd5 {[%clk 0:01:17.6]} 10... cxd5 {[%clk 0:02:15.8]} 11.
Bxd5 {[%clk 0:01:17.7]} 11... Bxb2 {[%clk 0:02:12.2]} 12. Rb1 {[%clk 0:01:18.2]}
12... Bc3+ {[%clk 0:02:11.1]} 13. Kf1 {[%clk 0:01:18.7]} 13... Nd7 {[%clk
0:01:51.5]} 14. Bxb6 {[%clk 0:01:02]} 14... O-O {[%clk 0:01:45.6]} 15. Be3
{[%clk 0:00:54]} 15... Ra5 {[%clk 0:01:27.9]} 16. Bc4 {[%clk 0:00:42.1]} 16...
Ne5 {[%clk 0:01:05.4]} 17. Bb3 {[%clk 0:00:42.2]} 17... Rfa8 {[%clk 0:01:01.1]}
18. f3 {[%clk 0:00:40.3]} 18... Bf5 {[%clk 0:00:59.3]} 19. Kf2 {[%clk
0:00:33.9]} 19... Nc6 {[%clk 0:00:58.6]} 20. Bc4 {[%clk 0:00:28.5]} 20... Ne5
{[%clk 0:00:53.6]} 21. Bb3 {[%clk 0:00:27.6]} 21... Kg7 {[%clk 0:00:48.7]} 22.
h4 {[%clk 0:00:26.8]} 22... h5 {[%clk 0:00:47.5]} 23. Nh3 {[%clk 0:00:26.2]}
23... Nc6 {[%clk 0:00:44.4]} 24. Bc4 {[%clk 0:00:20.5]} 24... Ne5 {[%clk
0:00:33.7]} 25. Bb3 {[%clk 0:00:20.6]} 25... Nc6 {[%clk 0:00:33.5]} 26. Nf4
{[%clk 0:00:11.3]} 26... e6 {[%clk 0:00:29.4]} 27. Bc4 {[%clk 0:00:08.4]} 27...
e5 {[%clk 0:00:20.5]} 28. Nd5 {[%clk 0:00:06.9]} 28... Bd4 {[%clk 0:00:19.5]}
29. Nc7 {[%clk 0:00:05.9]} 29... Rc8 {[%clk 0:00:18.6]} 30. Nb5 {[%clk
0:00:05.8]} 30... Kf6 {[%clk 0:00:17.8]} 31. Nd6 {[%clk 0:00:05.4]} 31... Rd8
{[%clk 0:00:15.8]} 32. Nxb7 {[%clk 0:00:05]} 32... Rda8 {[%clk 0:00:13.3]} 33.
Nxa5 {[%clk 0:00:04.9]} 33... Rxa5 {[%clk 0:00:14.2]} 34. Rb7 {[%clk 0:00:04.4]}
34... Nd8 {[%clk 0:00:12.2]} 35. Rb8 {[%clk 0:00:02.6]} 35... Nc6 {[%clk
0:00:12.3]} 0-1

[Event "*** Titled Tuesday Blitz"]
[Site "Chess.com"]
[Date "2020.11.10"]
[Round "9"]
[White "Praslov"]
[Black "sboshaon21"]
[Result "1-0"]
[WhiteElo "2389"]
[BlackElo "2069"]
[TimeControl "180+1"]
[EndTime "11:52:03 PST"]
[Termination "Praslov won on time"]

1. d4 {[%clk 0:03:00.9]} 1... d5 {[%clk 0:02:58.6]} 2. c4 {[%clk 0:02:59.9]}
2... c6 {[%clk 0:02:58]} 3. cxd5 {[%clk 0:02:59.4]} 3... cxd5 {[%clk 0:02:57.3]}
4. Nc3 {[%clk 0:02:59.6]} 4... Nf6 {[%clk 0:02:57.6]} 5. Bf4 {[%clk 0:02:59.3]}
5... e6 {[%clk 0:02:54.2]} 6. e3 {[%clk 0:02:59.1]} 6... a6 {[%clk 0:02:53.6]}
7. Bd3 {[%clk 0:02:56.6]} 7... Bd6 {[%clk 0:02:53.2]} 8. Bxd6 {[%clk 0:02:56]}
8... Qxd6 {[%clk 0:02:52.7]} 9. f4 {[%clk 0:02:56.4]} 9... Nc6 {[%clk
0:02:48.9]} 10. Nf3 {[%clk 0:02:56.2]} 10... O-O {[%clk 0:02:48]} 11. O-O {[%clk
0:02:55.9]} 11... b5 {[%clk 0:02:48]} 12. Rc1 {[%clk 0:02:51.7]} 12... Bb7
{[%clk 0:02:48.2]} 13. Ne5 {[%clk 0:02:51.1]} 13... Ne7 {[%clk 0:02:47.6]} 14.
Qf3 {[%clk 0:02:44]} 14... Rac8 {[%clk 0:02:37.2]} 15. g4 {[%clk 0:02:42.4]}
15... b4 {[%clk 0:02:28.4]} 16. g5 {[%clk 0:02:36.9]} 16... Nd7 {[%clk
0:01:45.1]} 17. Na4 {[%clk 0:01:58.4]} 17... Nf5 {[%clk 0:00:52]} 18. Nxd7
{[%clk 0:01:48.8]} 18... Qxd7 {[%clk 0:00:51.4]} 19. Nc5 {[%clk 0:01:49.1]}
19... Qe7 {[%clk 0:00:47.9]} 20. Rc2 {[%clk 0:01:17.4]} 20... a5 {[%clk
0:00:19.1]} 21. Rfc1 {[%clk 0:01:16.8]} 21... Ba8 {[%clk 0:00:18.2]} 22. Qe2
{[%clk 0:01:03.7]} 22... Nd6 {[%clk 0:00:17.6]} 23. b3 {[%clk 0:00:58.5]} 23...
f6 {[%clk 0:00:16.7]} 24. gxf6 {[%clk 0:00:57.2]} 24... Qxf6 {[%clk 0:00:16.6]}
25. Kh1 {[%clk 0:00:52.5]} 25... Qe7 {[%clk 0:00:15.6]} 26. Rg1 {[%clk
0:00:50.4]} 26... Nf5 {[%clk 0:00:13.1]} 27. Rg2 {[%clk 0:00:41.2]} 27... Rcd8
{[%clk 0:00:12.9]} 28. Rc1 {[%clk 0:00:39.6]} 28... Rf6 {[%clk 0:00:11.2]} 29.
Rcg1 {[%clk 0:00:39]} 29... g6 {[%clk 0:00:09.8]} 30. Rg5 {[%clk 0:00:37.9]}
30... Kh8 {[%clk 0:00:08.7]} 31. h4 {[%clk 0:00:35.7]} 31... Ng7 {[%clk
0:00:06.2]} 32. R1g2 {[%clk 0:00:31.6]} 32... Rdf8 {[%clk 0:00:05.9]} 33. Qc2
{[%clk 0:00:26.3]} 33... Ne8 {[%clk 0:00:05.2]} 34. h5 {[%clk 0:00:21.9]} 34...
Kg7 {[%clk 0:00:02.1]} 35. hxg6 {[%clk 0:00:20.8]} 35... hxg6 {[%clk 0:00:03]}
36. Bxg6 {[%clk 0:00:19.7]} 1-0